bitfinex/quotes_BTCUSD_20220405
["timestamp","ask_amount","ask_price","bid_price","bid_amount"]
[1649176417377,0.05,45863.0,45858.0,0.17695442]
[1649176417578,0.05,45863.0,45857.0,0.17695442]
[1649176418629,0.006,45858.0,45856.0,0.17695442]
[1649176418730,0.060508,45858.0,45856.0,0.17695442]
[1649176418882,0.110508,45858.0,45856.0,0.17695442]
[1649176419080,0.109015,45859.0,45858.0,0.02909839]
[1649176419230,0.177517,45865.0,45858.0,0.02909839]
[1649176419429,0.177517,45865.0,45858.0,0.02209839]
[1649176419767,0.054505,45861.0,45858.0,0.02209839]
[1649176419864,0.054505,45861.0,45858.0,0.19905281]
[1649176420416,0.054505,45861.0,45858.0,0.02209839]
[1649176421319,0.177517,45860.0,45858.0,0.02209839]
[1649176421521,0.336539,45860.0,45858.0,0.02209839]
[1649176421921,0.159022,45860.0,45858.0,0.02209839]
[1649176422272,0.0088517,45865.0,45858.0,0.02209839]
[1649176422371,0.05,45860.0,45858.0,0.02209839]
[1649176422475,0.0005054,45866.0,45858.0,0.02209839]
[1649176422574,0.177517,45865.0,45858.0,0.02209839]
[1649176422673,0.054511,45864.0,45858.0,0.02209839]
[1649176422773,0.177517,45863.0,45858.0,0.02209839]
[1649176423180,0.109022,45860.0,45858.0,0.02209839]
[1649176423360,0.177517,45859.0,45858.0,0.02209839]
[1649176424261,0.227517,45859.0,45858.0,0.02209839]
[1649176425970,0.22901557,45859.0,45858.0,0.02209839]
[1649176426467,0.22667398,45859.0,45858.0,0.02209839]
[1649176426819,0.04915698,45859.0,45858.0,0.02209839]
[1649176427020,0.17901557,45859.0,45858.0,0.02209839]
[1649176428115,0.22901557,45859.0,45858.0,0.02209839]
[1649176428465,1.15,45858.0,45855.0,0.00050553]
[1649176428569,0.177517,45857.0,45855.0,0.00050553]
[1649176428765,0.227517,45857.0,45855.0,0.00050553]
[1649176428865,0.01103827,45856.0,45855.0,0.00050553]
[1649176428967,0.18855527,45856.0,45855.0,0.00050553]
[1649176429065,0.70152313,45855.0,45851.0,0.1]
[1649176429169,0.01103827,45852.0,45851.0,0.1]
[1649176429266,0.18855527,45852.0,45851.0,0.1]
[1649176429565,0.23855527,45852.0,45851.0,0.1]
[1649176429670,0.27166896,45852.0,45851.0,0.1]
[1649176429770,0.28256896,45852.0,45851.0,0.1]
[1649176429868,0.33256896,45852.0,45851.0,0.1]
[1649176430070,0.43256896,45852.0,45851.0,0.1]
[1649176431125,0.24945527,45852.0,45851.0,0.4]
[1649176431268,0.24945527,45852.0,45851.0,0.1]
[1649176431269,0.23855539,45852.0,45851.0,0.1]
[1649176431571,0.227517,45852.0,45851.0,0.1]
[1649176432719,0.22893166,45852.0,45851.0,0.1]
[1649176435563,0.23996993,45852.0,45851.0,0.1]
[1649176436915,0.22893166,45852.0,45851.0,0.1]
[1649176437015,0.23927186,45852.0,45851.0,0.1]
[1649176444833,0.23927186,45852.0,45850.0,0.0010904]
[1649176444834,0.85,45851.0,45850.0,0.0010904]
[1649176444927,0.22166915,45851.0,45850.0,0.0010904]
[1649176445230,0.22166915,45851.0,45846.0,0.001]
[1649176445231,0.877517,45850.0,45846.0,0.001]
[1649176445330,0.01103839,45847.0,45846.0,0.001]
[1649176445431,0.36643808,45847.0,45846.0,0.001]
[1649176445629,0.41643808,45847.0,45846.0,0.001]
[1649176445878,0.71169448,45847.0,45846.0,0.001]
[1649176445975,0.53381179,45847.0,45846.0,0.001]
[1649176446377,0.23855539,45847.0,45846.0,0.001]
[1649176447882,0.48980995,45847.0,45846.0,0.001]
[1649176448435,0.4910684,45847.0,45846.0,0.001]
[1649176448641,0.22877545,45847.0,45846.0,0.001]
[1649176448739,0.23034613,45847.0,45846.0,0.001]
[1649176452363,0.40402803,45852.0,45846.0,0.001]
[1649176452462,0.01103839,45847.0,45846.0,0.001]
[1649176452563,0.00846422,45847.0,45846.0,0.001]
[1649176452916,0.02538266,45847.0,45846.0,0.001]
[1649176454027,0.054537,45848.0,45846.0,0.001]
[1649176454123,0.05,45848.0,45846.0,0.001]
[1649176454527,0.104523,45850.0,45846.0,0.001]
[1649176454628,0.054523,45850.0,45846.0,0.001]
[1649176454728,0.104523,45850.0,45846.0,0.001]
[1649176454828,0.054523,45850.0,45846.0,0.001]
[1649176455835,0.054523,45850.0,45846.0,0.00152078]
[1649176456187,0.5,45855.0,45846.0,0.00152078]
[1649176456788,0.49950776,45855.0,45846.0,0.00152078]
[1649176456886,0.49950776,45855.0,45846.0,0.001]
[1649176456983,0.49950776,45855.0,45840.0,0.41787441]
[1649176457109,0.00050572,45858.0,45847.0,0.00050585]
[1649176457210,0.00050572,45858.0,45851.0,0.24892975]
[1649176457411,0.05501672,45858.0,45851.0,0.24892975]
[1649176458011,0.054511,45858.0,45851.0,0.24892975]
[1649176458220,0.054511,45858.0,45847.0,0.00050588]
[1649176458314,0.22815599,45853.0,45847.0,0.00050588]
[1649176458413,0.31579725,45853.0,45847.0,0.00050588]
[1649176458763,0.13764126,45853.0,45847.0,0.00050588]
[1649176459216,0.13764126,45853.0,45841.0,0.26632514]
[1649176459416,0.054535,45850.0,45847.0,0.00050585]
[1649176459517,0.054533,45849.0,45847.0,0.00050585]
[1649176460472,0.054533,45849.0,45842.0,0.01091]
[1649176460718,0.054533,45849.0,45846.0,0.0005049]
[1649176461680,0.054533,45849.0,45842.0,0.01091]
[1649176461773,0.05453399,45848.0,45842.0,0.01091]
[1649176461873,0.05453399,45848.0,45845.0,0.00050491]
[1649176462876,0.05453399,45848.0,45841.0,0.26632514]
[1649176463126,0.05453399,45848.0,45844.0,0.00050491]
[1649176463725,0.05591556,45848.0,45844.0,0.00050491]
[1649176464028,0.05591556,45848.0,45838.0,0.01091]
[1649176464127,0.054536,45846.0,45838.0,0.01091]
[1649176464233,0.054536,45846.0,45844.0,0.00050498]
[1649176465266,0.054536,45846.0,45836.0,0.23280457]
[1649176465367,0.3,45845.0,45836.0,0.01091]
[1649176465468,0.05453866,45844.0,45836.0,0.01091]
[1649176465568,0.054542,45841.0,45836.0,0.01091]
[1649176465667,0.05574025,45841.0,45836.0,0.01091]
[1649176465819,0.109085,45840.0,45836.0,0.01091]
[1649176466625,0.109085,45840.0,45836.0,0.31686922]
[1649176466719,0.1636286,45840.0,45836.0,0.01091]
[1649176466824,0.05,45839.0,45835.0,0.001]
[1649176466971,0.05,45839.0,45836.0,0.17766352]
[1649176466972,0.00120511,45837.0,45836.0,0.17766352]
[1649176467072,0.05,45839.0,45838.0,0.05048545]
[1649176469113,0.05,45839.0,45838.0,0.22814897]
[1649176469313,0.05,45839.0,45838.0,0.05048545]
[1649176469417,0.05,45840.0,45838.0,0.05048545]
[1649176469515,0.05,45845.0,45838.0,0.05048545]
[1649176469813,0.054528,45845.0,45838.0,0.05048545]
[1649176470114,0.054528,45845.0,45840.0,0.23616316]
[1649176471319,0.054528,45845.0,45840.0,0.41382668]
[1649176471418,0.054528,45845.0,45840.0,0.41410784]
[1649176472215,0.054528,45845.0,45841.0,0.28450529]
[1649176472618,0.054528,45845.0,45841.0,0.28476586]
[1649176472817,0.054528,45845.0,45841.0,0.46242938]
[1649176473168,0.054528,45845.0,45841.0,0.17792409]
[1649176473668,0.054528,45845.0,45841.0,0.17766352]
[1649176473868,0.054528,45845.0,45841.0,0.17818022]
[1649176474268,0.054528,45845.0,45842.0,0.2861549]
[1649176475721,0.054516,45848.0,45842.0,0.2861549]
[1649176475899,0.1109,45852.0,45843.0,0.17766352]
[1649176476001,0.05,45852.0,45843.0,0.47562494]
[1649176476100,0.05,45852.0,45844.0,0.17766352]
[1649176476198,0.05,45853.0,45843.0,0.17766352]
[1649176476301,0.0109,45855.0,45844.0,0.17766352]
[1649176476398,0.2413774,45854.0,45844.0,0.17766352]
[1649176476497,0.0109,45855.0,45844.0,0.17766352]
[1649176476599,0.05,45854.0,45844.0,0.17766352]
[1649176476697,0.0109,45855.0,45850.0,0.23372791]
[1649176477048,0.5109,45855.0,45844.0,0.17766352]
[1649176477151,0.05,45853.0,45844.0,0.17766352]
[1649176477450,0.35953255,45853.0,45847.0,0.00050027]
[1649176477552,0.05,45854.0,45847.0,0.00050027]
[1649176477650,0.10903,45853.0,45847.0,0.00050027]
[1649176477750,0.05,45852.0,45847.0,0.00050027]
[1649176478459,0.05,45852.0,45845.0,0.31227035]
[1649176478557,0.41258735,45851.0,45845.0,0.31227035]
[1649176478655,0.109052,45851.0,45847.0,0.00050026]
[1649176478755,0.05,45850.0,45847.0,0.00050026]
[1649176478854,0.054531,45849.0,45847.0,0.00050026]
[1649176479622,0.054531,45849.0,45842.0,0.17766352]
[1649176479824,0.054531,45849.0,45846.0,0.00050098]
[1649176479924,0.1090637,45848.0,45846.0,0.00050098]
[1649176480123,0.05,45847.0,45846.0,0.00050098]
[1649176480687,0.05,45847.0,45841.0,0.17766352]
[1649176480783,0.05,45847.0,45840.0,0.17766352]
[1649176480784,0.17310577,45844.0,45840.0,0.17766352]
[1649176480882,0.22907768,45844.0,45839.0,0.17766352]
[1649176480976,0.05597191,45844.0,45839.0,0.17766352]
[1649176481074,0.10597191,45844.0,45839.0,0.17766352]
[1649176481176,0.05453865,45843.0,45839.0,0.17766352]
[1649176481277,0.05,45841.0,45838.0,0.22814897]
[1649176481378,0.109088,45840.0,45838.0,0.22814897]
[1649176481476,0.109088,45840.0,45838.0,0.05048545]
[1649176481658,0.05,45839.0,45838.0,0.05048545]
[1649176482476,1.58783194,45848.0,45838.0,0.05048545]
[1649176482577,0.01091,45846.0,45838.0,0.05048545]
[1649176482677,0.054545,45840.0,45838.0,0.05048545]
[1649176482775,0.05454428,45839.0,45838.0,0.05048545]
[1649176484088,0.10454428,45839.0,45838.0,0.05048545]
[1649176484538,0.15454428,45839.0,45838.0,0.05048545]
[1649176485042,0.16558713,45839.0,45838.0,0.05048545]
[1649176485839,0.16558713,45839.0,45835.0,0.001]
[1649176485840,0.17649713,45839.0,45835.0,0.001]
[1649176485943,0.06512227,45836.0,45835.0,0.001]
[1649176486042,0.06511943,45836.0,45835.0,0.001]
[1649176486342,0.14824403,45836.0,45835.0,0.001]
[1649176486692,0.13824403,45836.0,45835.0,0.001]
[1649176487723,0.04278703,45839.0,45835.0,0.001]
[1649176487826,0.05894668,45836.0,45835.0,0.001]
[1649176488725,0.05894668,45836.0,45835.0,0.27642184]
[1649176489028,0.05894668,45836.0,45835.0,0.001]
[1649176490328,0.05894668,45836.0,45835.0,0.28425687]
[1649176490531,0.05894668,45836.0,45835.0,0.001]
[1649176490629,0.01104249,45836.0,45835.0,0.001]
[1649176491631,0.01104249,45836.0,45833.0,0.001]
[1649176491733,0.03312431,45837.0,45833.0,0.301]
[1649176491829,0.03312431,45837.0,45833.0,0.30150798]
[1649176492079,0.03312431,45837.0,45833.0,0.00150798]
[1649176492384,0.03312431,45837.0,45833.0,0.5209612]
[1649176492483,0.03312431,45837.0,45833.0,0.2209612]
[1649176492787,0.08312431,45837.0,45833.0,0.2209612]
[1649176492935,0.08312431,45837.0,45833.0,0.52045322]
[1649176493086,0.08312431,45837.0,45833.0,0.5209612]
[1649176493786,0.05,45837.0,45833.0,0.5209612]
[1649176494087,0.05,45837.0,45833.0,0.69824822]
[1649176494187,0.05,45837.0,45834.0,0.177795]
[1649176494722,0.05,45837.0,45833.0,0.69874508]
[1649176495218,0.05,45837.0,45833.0,0.52095008]
[1649176495319,0.05,45837.0,45833.0,0.52045322]
[1649176495519,0.05,45837.0,45833.0,0.52095008]
[1649176496422,0.05,45837.0,45833.0,0.52045322]
[1649176496626,0.05,45837.0,45833.0,0.52069401]
[1649176497075,0.05,45837.0,45833.0,0.00124079]
[1649176497274,0.213649,45837.0,45833.0,0.00124079]
[1649176497373,0.01104249,45834.0,45833.0,0.00124079]
[1649176497478,0.04416673,45834.0,45833.0,0.00124079]
[1649176497678,0.04416673,45834.0,45833.0,0.001]
[1649176498669,0.09416673,45834.0,45833.0,0.001]
[1649176502262,0.054555,45833.0,45831.0,0.00249624]
[1649176502460,0.01104454,45832.0,45831.0,0.002]
[1649176502667,0.01104454,45832.0,45831.0,0.00249624]
[1649176502864,0.31104454,45832.0,45831.0,0.00249624]
[1649176503066,0.31104454,45832.0,45830.0,0.001]
[1649176503067,1.35,45831.0,45830.0,0.001]
[1649176503164,0.01104454,45831.0,45830.0,0.001]
[1649176503320,0.10474454,45831.0,45823.0,0.002]
[1649176503468,0.01104442,45826.0,45823.0,0.002]
[1649176503565,0.17855661,45826.0,45823.0,0.002]
[1649176503665,0.01104442,45825.0,45823.0,0.002]
[1649176503765,0.01104442,45825.0,45823.0,0.001]
[1649176503865,0.01104442,45824.0,45823.0,0.001]
[1649176505017,0.06104442,45824.0,45823.0,0.001]
[1649176507297,0.00050799,45823.0,45821.0,0.001]
[1649176507398,0.06598628,45823.0,45821.0,0.001]
[1649176507496,0.01104803,45822.0,45821.0,0.00149667]
[1649176507752,0.06104803,45822.0,45821.0,0.00149667]
[1649176508047,0.11104803,45822.0,45821.0,0.00149667]
[1649176508347,0.10172378,45822.0,45821.0,0.00149667]
[1649176508551,0.2654412,45822.0,45819.0,0.002]
[1649176508649,0.05894668,45820.0,45819.0,0.002]
[1649176508748,0.05894668,45820.0,45819.0,0.0024963]
[1649176508951,0.01104803,45820.0,45819.0,0.0024963]
[1649176509251,0.24396208,45820.0,45819.0,0.0024963]
[1649176509353,0.95,45819.0,45817.0,0.001]
[1649176509453,0.95033118,45819.0,45817.0,0.001]
[1649176509640,0.02195803,45818.0,45817.0,0.001]
[1649176509736,0.20663712,45818.0,45809.0,0.001]
[1649176509831,0.054577,45816.0,45809.0,0.001]
[1649176509931,0.109156,45816.0,45809.0,0.001]
[1649176510034,0.054577,45816.0,45809.0,0.001]
[1649176510129,0.104577,45816.0,45809.0,0.001]
[1649176510479,0.104577,45816.0,45810.0,0.3038722]
[1649176510585,0.104577,45816.0,45809.0,0.001]
[1649176510929,0.05,45816.0,45809.0,0.001]
[1649176511134,0.00025688,45815.0,45809.0,0.001]
[1649176511631,0.00025688,45815.0,45810.0,0.2960632]
[1649176511882,0.00025688,45815.0,45813.0,0.24093402]
[1649176511983,0.01104755,45814.0,45813.0,0.24093402]
[1649176512433,0.10963814,45822.0,45813.0,0.24093402]
[1649176512540,0.1,45816.0,45813.0,0.24093402]
[1649176512634,0.04789913,45814.0,45813.0,0.24093402]
[1649176513035,0.054561,45822.0,45814.0,0.08894865]
[1649176513136,0.12512417,45817.0,45814.0,0.38894865]
[1649176513235,0.12512417,45815.0,45814.0,0.08894865]
[1649176514073,0.12500498,45815.0,45814.0,0.08894865]
[1649176514175,0.42526698,45815.0,45814.0,0.08894865]
[1649176514379,0.47526698,45815.0,45814.0,0.08894865]
[1649176514475,0.50721654,45815.0,45814.0,0.08894865]
[1649176514676,0.25708056,45815.0,45814.0,0.08894865]
[1649176514778,0.14299759,45815.0,45814.0,0.08894865]
[1649176515790,0.14299735,45815.0,45814.0,0.08894865]
[1649176516327,0.14462544,45815.0,45814.0,0.08894865]
[1649176517027,0.06267588,45815.0,45814.0,0.08894865]
[1649176517328,0.01267588,45815.0,45814.0,0.08894865]
[1649176519431,0.01267588,45815.0,45814.0,0.40427564]
[1649176521584,0.00053163,45818.0,45814.0,0.40427564]
[1649176521685,0.11663501,45815.0,45814.0,0.40427564]
[1649176521787,0.16663501,45815.0,45814.0,0.40427564]
[1649176522035,0.16662992,45815.0,45814.0,0.40427564]
[1649176522740,0.16825872,45815.0,45814.0,0.40427564]
[1649176523242,0.11825872,45815.0,45814.0,0.40427564]
[1649176523642,0.11825872,45815.0,45814.0,0.41518564]
[1649176523843,0.11825872,45815.0,45814.0,0.73908964]
[1649176523942,0.11825872,45815.0,45814.0,0.40427564]
[1649176524093,0.11825872,45815.0,45814.0,0.73908964]
[1649176524294,0.0016288,45815.0,45814.0,0.73908964]
[1649176524492,0.0016288,45815.0,45814.0,0.69297753]
[1649176524935,0.00053163,45818.0,45815.0,0.25158336]
[1649176525035,0.00053163,45818.0,45816.0,0.03221756]
[1649176525486,0.1091194,45822.0,45816.0,0.01091]
[1649176525687,0.000511,45819.0,45816.0,0.01091]
[1649176526535,0.1091194,45822.0,45816.0,0.01091]
[1649176527339,0.05456,45819.0,45816.0,0.01091]
[1649176527440,0.0545615,45818.0,45816.0,0.01091]
[1649176528091,0.0545615,45818.0,45815.0,0.00207601]
[1649176528192,0.1091265,45818.0,45815.0,0.00207601]
[1649176531142,0.05,45817.0,45815.0,0.00207601]
[1649176532134,0.10964909,45818.0,45815.0,0.00207601]
[1649176532627,0.1091265,45818.0,45815.0,0.00207601]
[1649176534283,0.0545615,45818.0,45815.0,0.00207601]
[1649176534385,0.03659973,45818.0,45815.0,0.00207601]
[1649176536878,0.03659973,45818.0,45817.0,0.00099892]
[1649176537427,0.03624004,45818.0,45817.0,0.00099892]
[1649176539282,0.03624004,45818.0,45815.0,0.00207601]
[1649176541753,0.05505307,45819.0,45815.0,0.00207601]
[1649176541955,0.00049307,45819.0,45815.0,0.00207601]
[1649176542259,0.05,45822.0,45815.0,0.00207601]
[1649176542505,0.01091,45827.0,45815.0,0.00207601]
[1649176542905,0.01091,45827.0,45820.0,0.28405424]
[1649176543107,0.01091,45827.0,45822.0,0.28951539]
[1649176543257,0.18812043,45826.0,45822.0,0.28951539]
[1649176543406,0.3472275,45826.0,45822.0,0.28951539]
[1649176543743,0.15910707,45826.0,45822.0,0.28951539]
[1649176543946,0.15910707,45826.0,45816.0,0.17773321]
[1649176544148,0.10912445,45824.0,45815.0,0.17980922]
[1649176544246,0.109129,45823.0,45815.0,0.17980922]
[1649176544900,0.05456504,45820.0,45815.0,0.44419743]
[1649176544998,0.05456504,45820.0,45816.0,0.30158314]
[1649176545200,0.05456504,45820.0,45817.0,0.17773321]
[1649176545853,0.054565,45822.0,45817.0,0.17773321]
[1649176545951,0.054565,45822.0,45818.0,0.17773321]
[1649176546050,0.00025559,45821.0,45817.0,0.17773321]
[1649176546452,0.00025559,45821.0,45818.0,0.17773321]
[1649176546554,0.00025559,45821.0,45818.0,0.42559483]
[1649176546755,0.00025559,45821.0,45818.0,0.17773321]
[1649176546952,0.054565,45822.0,45818.0,0.17773321]
[1649176547225,0.05509553,45822.0,45818.0,0.17773321]
[1649176547424,0.05509553,45822.0,45816.0,0.30158314]
[1649176547525,0.05509553,45822.0,45818.0,0.17811645]
[1649176547626,0.05509553,45822.0,45817.0,0.17811645]
[1649176547724,0.05509553,45822.0,45818.0,0.17811645]
[1649176548176,0.054565,45822.0,45817.0,0.17811645]
[1649176548477,0.05509553,45822.0,45817.0,0.17811645]
[1649176549182,0.05509553,45822.0,45816.0,0.30158314]
[1649176549279,0.06174543,45822.0,45817.0,0.17813083]
[1649176549378,0.0612149,45822.0,45817.0,0.17813083]
[1649176549481,0.0612149,45822.0,45818.0,0.17813083]
[1649176549584,0.26555733,45819.0,45817.0,0.17813083]
[1649176549688,0.26555733,45819.0,45816.0,0.17813083]
[1649176549803,0.26355733,45819.0,45818.0,0.001]
[1649176549881,0.26355733,45819.0,45818.0,0.02230756]
[1649176549882,0.1071179,45819.0,45818.0,0.02230756]
[1649176550185,0.1071179,45819.0,45818.0,0.001]
[1649176551598,0.00053053,45821.0,45818.0,0.001]
[1649176551700,0.10711323,45819.0,45818.0,0.001]
[1649176551799,0.00332495,45823.0,45818.0,0.001]
[1649176551899,0.01104755,45819.0,45818.0,0.02230756]
[1649176551999,0.01104755,45819.0,45818.0,0.34157387]
[1649176553150,0.01104755,45819.0,45818.0,0.63741737]
[1649176553353,0.01104755,45819.0,45818.0,0.02230756]
[1649176553653,0.0143706,45819.0,45818.0,0.02230756]
[1649176556687,0.0143706,45819.0,45818.0,0.24498031]
[1649176556935,0.0143706,45819.0,45818.0,0.29498031]
[1649176557038,0.00332562,45820.0,45819.0,0.02588393]
[1649176557238,0.02380284,45820.0,45819.0,0.02588393]
[1649176560084,0.02380284,45820.0,45819.0,0.20401607]
[1649176560184,0.02380284,45820.0,45819.0,0.02588393]
[1649176560585,0.00332562,45820.0,45819.0,0.02588393]
[1649176560783,0.04144207,45820.0,45819.0,0.02588393]
[1649176560984,0.04144207,45820.0,45819.0,0.20401494]
[1649176561491,0.00332562,45820.0,45819.0,0.20401494]
[1649176561586,0.03039572,45820.0,45819.0,0.02588393]
[1649176561840,0.02969173,45820.0,45819.0,0.02588393]
[1649176562043,0.02969173,45820.0,45819.0,0.20401494]
[1649176562347,0.02969173,45820.0,45819.0,0.02588393]
[1649176562450,0.02969173,45820.0,45819.0,0.20401494]
[1649176565205,0.02969173,45820.0,45819.0,0.19901494]
[1649176565405,0.01091,45831.0,45825.0,0.96739914]
[1649176565507,0.01104623,45826.0,45825.0,0.96739914]
[1649176565607,0.01104623,45826.0,45825.0,0.9887067]
[1649176567792,0.01104623,45826.0,45825.0,0.98989746]
[1649176569242,0.01104623,45826.0,45825.0,0.9685899]
[1649176571931,0.21265738,45826.0,45825.0,0.9685899]
[1649176572032,0.26265738,45826.0,45825.0,0.9685899]
[1649176572582,0.30895265,45828.0,45827.0,0.04680803]
[1649176572687,0.32000068,45828.0,45827.0,0.04680803]
[1649176572784,0.22000068,45828.0,45827.0,0.04680803]
[1649176572884,0.32000068,45828.0,45827.0,0.04680803]
[1649176573084,0.17702833,45828.0,45827.0,0.04680803]
[1649176573286,0.33218395,45828.0,45827.0,0.04680803]
[1649176573485,0.33167865,45828.0,45827.0,0.04680803]
[1649176573685,0.32063062,45828.0,45827.0,0.04680803]
[1649176573786,0.33167817,45828.0,45827.0,0.04680803]
[1649176574388,0.28167817,45828.0,45827.0,0.04680803]
[1649176576648,0.42465052,45828.0,45827.0,0.04680803]
[1649176576847,0.38167817,45828.0,45827.0,0.04680803]
[1649176577279,0.32711317,45828.0,45827.0,0.04680803]
[1649176577884,0.22711317,45828.0,45827.0,0.04680803]
[1649176578181,0.2301919,45828.0,45827.0,0.04680803]
[1649176579787,0.2301919,45828.0,45827.0,0.04248767]
[1649176584642,0.2847579,45828.0,45827.0,0.04248767]
[1649176585239,0.2301919,45828.0,45827.0,0.04248767]
[1649176591146,0.2192819,45828.0,45825.0,0.91150589]
[1649176591266,0.26279835,45828.0,45825.0,0.91150589]
[1649176591347,0.01781582,45826.0,45825.0,0.91150589]
[1649176592257,0.00676826,45826.0,45825.0,0.91150589]
[1649176592460,0.00676716,45826.0,45825.0,1.24124843]
[1649176592753,0.00307873,45828.0,45825.0,1.24124843]
[1649176592957,0.00333351,45828.0,45825.0,1.24124843]
[1649176593855,0.00307873,45828.0,45825.0,1.24124843]
[1649176594508,0.00275604,45827.0,45825.0,1.24253608]
[1649176598789,0.00275656,45829.0,45825.0,1.24253608]
[1649176598886,0.00052749,45828.0,45825.0,1.24253608]
[1649176599888,0.00275656,45829.0,45825.0,1.24253608]
[1649176600089,0.00328405,45829.0,45825.0,1.24253608]
[1649176601093,0.00275656,45829.0,45825.0,1.24253608]
[1649176601296,0.00328444,45829.0,45825.0,1.24253608]
[1649176602303,0.00275656,45829.0,45825.0,1.24253608]
[1649176602455,0.36620668,45846.0,45827.0,1.8]
[1649176602554,0.00052788,45829.0,45828.0,0.01151311]
[1649176602651,1.47825087,45844.0,45838.0,0.28525898]
[1649176602753,1.47825087,45844.0,45839.0,0.3]
[1649176602754,0.5,45841.0,45839.0,0.3]
[1649176602904,0.20058,45844.0,45839.0,0.3]
[1649176602905,0.20058,45844.0,45840.0,0.02130756]
[1649176603100,0.01091,45850.0,45840.0,0.02130756]
[1649176603298,0.01091,45850.0,45842.0,0.26816357]
[1649176603448,0.01104213,45845.0,45843.0,0.3]
[1649176603592,0.01104213,45844.0,45843.0,0.3]
[1649176603795,0.01104213,45844.0,45842.0,0.3]
[1649176603892,0.01104213,45843.0,45841.0,0.29827354]
[1649176603991,0.04341,45850.0,45841.0,0.29827354]
[1649176604092,0.15507024,45849.0,45842.0,0.3]
[1649176604191,0.01104213,45844.0,45842.0,0.3]
[1649176604294,0.01104213,45843.0,45841.0,0.29827354]
[1649176604391,0.20507024,45849.0,45842.0,0.3]
[1649176604492,0.01104213,45844.0,45842.0,0.3]
[1649176604595,0.01104213,45843.0,45842.0,0.3]
[1649176604799,0.01104213,45843.0,45842.0,0.31094298]
[1649176605346,0.01104213,45843.0,45842.0,0.61094298]
[1649176605545,0.01104213,45843.0,45842.0,0.31094298]
[1649176606550,0.01104213,45843.0,45841.0,0.29827354]
[1649176606654,0.00051743,45845.0,45841.0,0.29827354]
[1649176606746,0.00051743,45845.0,45840.0,0.02130756]
[1649176606947,0.00294718,45843.0,45842.0,0.0015872]
[1649176607046,0.01399063,45843.0,45842.0,0.0015872]
[1649176611282,0.01399063,45843.0,45840.0,0.02130756]
[1649176611384,0.00294718,45843.0,45840.0,0.02130756]
[1649176611584,0.01104345,45841.0,45840.0,0.02130756]
[1649176613343,0.01104345,45841.0,45839.0,0.00158309]
[1649176613443,0.00343941,45843.0,45839.0,0.00158309]
[1649176613546,0.01104345,45840.0,45839.0,0.00158309]
[1649176614043,0.00343941,45843.0,45839.0,0.00158309]
[1649176614143,0.00343941,45843.0,45839.0,0.30158309]
[1649176614243,0.01,45859.0,45850.0,0.66012848]
[1649176614348,0.62914126,45851.0,45850.0,0.66012848]
[1649176614544,0.71134126,45851.0,45850.0,0.66012848]
[1649176614745,0.21134126,45851.0,45850.0,0.66012848]
[1649176615948,0.20697626,45851.0,45850.0,0.66012848]
[1649176616045,0.15697626,45851.0,45850.0,0.66012848]
[1649176616245,0.31198053,45851.0,45850.0,0.66012848]
[1649176616346,0.41198053,45851.0,45850.0,0.66012848]
[1649176616997,0.31198053,45851.0,45850.0,0.66012848]
[1649176617198,0.31198053,45851.0,45850.0,0.66171215]
[1649176618248,0.15697626,45851.0,45850.0,0.66171215]
[1649176619138,0.3119767,45851.0,45850.0,0.66171215]
[1649176619940,0.3119767,45851.0,45850.0,0.88783004]
[1649176620039,0.14107626,45851.0,45850.0,0.88783004]
[1649176620447,0.12386503,45851.0,45850.0,1.18525958]
[1649176620542,0.12386503,45851.0,45850.0,1.50656714]
[1649176620746,0.12386503,45851.0,45850.0,0.9091376]
[1649176620843,0.0322,45851.0,45850.0,0.9091376]
[1649176620943,0.14363213,45851.0,45850.0,0.9091376]
[1649176621346,0.14363213,45851.0,45850.0,0.68301971]
[1649176622455,0.14363213,45851.0,45850.0,0.95653265]
[1649176622558,0.14363213,45851.0,45850.0,0.68301971]
[1649176623455,0.14363213,45851.0,45850.0,0.95879612]
[1649176624060,0.14363213,45851.0,45850.0,0.68301971]
[1649176624257,0.01,45859.0,45850.0,0.68301971]
[1649176624258,0.46642668,45860.0,45850.0,0.02289123]
[1649176624358,0.11108954,45860.0,45850.0,0.02289123]
[1649176624460,0.17,45855.0,45851.0,0.25467008]
[1649176624560,0.36711918,45860.0,45850.0,0.02289123]
[1649176624561,0.11108954,45860.0,45850.0,0.02289123]
[1649176624660,0.17,45855.0,45850.0,0.02289123]
[1649176624759,0.03513557,45860.0,45850.0,0.02289123]
[1649176624861,0.17,45855.0,45850.0,0.02289123]
[1649176624959,0.10906,45855.0,45850.0,0.02289123]
[1649176625311,0.054524,45859.0,45850.0,0.02289123]
[1649176625412,0.054524,45859.0,45850.0,0.339895]
[1649176625711,0.05452794,45858.0,45851.0,0.24586953]
[1649176625897,0.1550611,45857.0,45850.0,0.339895]
[1649176626599,0.00025357,45856.0,45850.0,0.339895]
[1649176626895,0.1550611,45855.0,45850.0,0.339895]
[1649176627097,0.1550611,45855.0,45851.0,0.3]
[1649176627197,0.1550611,45855.0,45853.0,0.29219991]
[1649176627299,0.17,45854.0,45853.0,0.29219991]
[1649176628147,0.17,45854.0,45853.0,0.59219991]
[1649176628799,0.17,45854.0,45853.0,0.3]
[1649176628999,0.17,45854.0,45852.0,0.00142444]
[1649176629098,0.17,45853.0,45852.0,0.00142444]
[1649176629298,0.00052815,45856.0,45852.0,0.00142444]
[1649176629401,0.00052815,45856.0,45851.0,0.30381255]
[1649176629942,0.03310603,45860.0,45851.0,0.30381255]
[1649176630140,0.00052815,45856.0,45852.0,0.26464285]
[1649176631092,0.054516,45859.0,45852.0,0.26846538]
[1649176631295,0.054516,45859.0,45857.0,0.02130756]
[1649176631398,0.09177595,45858.0,45857.0,0.02130756]
[1649176632095,0.24686304,45858.0,45857.0,0.02130756]
[1649176635583,0.24686304,45858.0,45857.0,0.02512163]
[1649176636085,0.15508709,45858.0,45857.0,0.02512163]
[1649176636187,0.24182256,45858.0,45857.0,0.02512163]
[1649176640094,0.22602256,45858.0,45857.0,0.02512163]
[1649176641231,0.22602256,45858.0,45857.0,0.00381407]
[1649176642883,0.22602256,45858.0,45857.0,0.02512163]
[1649176643533,0.22602256,45858.0,45854.0,0.3]
[1649176643635,0.13928709,45858.0,45851.0,0.3109]
[1649176643737,0.14264605,45860.0,45857.0,0.00380914]
[1649176643834,0.08673547,45858.0,45857.0,0.00380914]
[1649176645687,0.14215403,45860.0,45857.0,0.00380914]